fUSD/lending_fUSD_20240625
["ID","MTS","AMOUNT","RATE_DAILY","PERIOD"]
[330343854,1719276640205,-528.0988798,0.00013888,2]
[330343855,1719276640215,-510.75744925,0.00013888,2]
[330343856,1719276640225,-1332.14426107,0.00013889,2]
[330343857,1719276640234,-582.77144095,0.00013889,2]
[330343858,1719276640244,-39400.1521,0.0001389,2]
[330343859,1719276640253,-1559.971896,0.000139,2]
[330343860,1719276640263,-74209.787,0.000139,2]
[330343861,1719276640272,-27772.4259,0.000139,2]
[330343862,1719276640282,-500.0,0.000139,2]
[330343863,1719276640292,-100000.0,0.000139,2]
[330343864,1719276640302,-1000.0,0.000139,2]
[330343865,1719276640311,-165.67642341,0.000139,2]
[330343866,1719276640321,-234.687566,0.000139,2]
[330343867,1719276640331,-234.687566,0.000139,2]
[330343868,1719276640343,-156.77732302,0.000139,2]
[330343869,1719276640352,-242.121751,0.000139,2]
[330343870,1719276640361,-151.0,0.000139,2]
[330343871,1719276640371,-242.121751,0.000139,2]
[330343872,1719276640379,-151.0,0.000139,2]
[330343873,1719276640388,-151.355216,0.000139,2]
[330343874,1719276640398,-151.355216,0.000139,2]
[330343875,1719276640408,-179.52460521,0.000139,2]
[330343876,1719276640417,-800.0,0.000139,5]
[330343877,1719276640427,-7500.0,0.000139,2]
[330343878,1719276640437,-163.26112512,0.000139,2]
[330343879,1719276640447,-1762.37693162,0.000139,2]
[330343880,1719276640456,-1000.0,0.000139,2]
[330343881,1719276640466,-321.07101081,0.000139,2]
[330343882,1719276640475,-753.48832543,0.00013912,2]
[330343883,1719276640485,-158.78971575,0.00013912,2]
[330343884,1719276640494,-1285.71256166,0.00013912,2]
[330343885,1719276640503,-328.45118823,0.00013962,2]
[330343886,1719276640512,-800.0,0.00013963,2]
[330343887,1719276640522,-430.46189482,0.00013964,2]
[330343888,1719276640531,-192.98244386,0.00013964,2]
[330343889,1719276640540,-274.69950757,0.00013965,2]
[330343890,1719276640550,-297.36585903,0.00013965,2]
[330343891,1719276640559,-158.49644512,0.00013965,2]
[330343892,1719276640569,-201.35632768,0.00013966,2]
[330343893,1719276640578,-155.0,0.00013966,2]
[330343894,1719276640587,-278.761568,0.00013989,2]
[330343895,1719276640600,-151.0,0.00013989,2]
[330343896,1719276640609,-151.0,0.00013989,2]
[330343897,1719276640618,-151.0,0.00013989,2]
[330343898,1719276640628,-151.0,0.00013989,2]
[330343899,1719276640639,-175.761974,0.00013989,2]
[330343900,1719276640648,-151.0,0.00013989,2]
[330343901,1719276640657,-151.0,0.00013989,2]
[330343902,1719276640667,-151.0,0.00013989,2]
[330343903,1719276640676,-151.0,0.00013989,2]
[330343904,1719276640686,-151.0,0.00013989,2]
[330343905,1719276640695,-151.0,0.00013989,2]
[330343906,1719276640704,-151.0,0.00013989,2]
[330343907,1719276640714,-234.687566,0.00013989,2]
[330343908,1719276640723,-234.687566,0.00013989,2]
[330343909,1719276640733,-242.121751,0.00013989,2]
[330343910,1719276640742,-151.0,0.00013989,2]
[330343911,1719276640751,-242.121751,0.00013989,2]
[330343912,1719276640760,-151.355216,0.00013989,2]
[330343913,1719276640769,-151.355216,0.00013989,2]
[330343914,1719276640779,-151.0,0.00013989,2]
[330343915,1719276640788,-151.0,0.00013989,2]
[330343916,1719276640798,-151.0,0.00013989,2]
[330343917,1719276640807,-151.0,0.00013989,2]
[330343918,1719276640817,-151.0,0.00013989,2]
[330343919,1719276640826,-151.0,0.00013989,2]
[330343920,1719276640838,-151.0,0.00013989,2]
[330343921,1719276640850,-151.0,0.00013989,2]
[330343922,1719276640860,-151.0,0.00013989,2]
[330343923,1719276640869,-151.0,0.00013989,2]
[330343924,1719276640879,-151.0,0.00013989,2]
[330343925,1719276640889,-184.791348,0.00013989,2]
[330343926,1719276640899,-151.0,0.00013989,2]
[330343927,1719276640908,-151.0,0.00013989,2]
[330343928,1719276640918,-151.0,0.00013989,2]
[330343929,1719276640930,-151.0,0.00013989,2]
[330343930,1719276640939,-151.0,0.00013989,2]
[330343931,1719276640949,-151.0,0.00013989,2]
[330343932,1719276640958,-151.0,0.00013989,2]
[330343933,1719276640967,-151.0,0.00013989,2]
[330343934,1719276640977,-151.0,0.00013989,2]
[330343935,1719276640986,-151.0,0.00013989,2]
[330343936,1719276640996,-151.0,0.00013989,2]
[330343937,1719276641005,-282.649821,0.00013989,2]
[330343938,1719276641014,-282.649821,0.00013989,2]
[330343939,1719276641023,-282.649821,0.00013989,2]
[330343940,1719276641033,-282.649821,0.00013989,2]
[330343941,1719276641042,-151.0,0.00013989,2]
[330343942,1719276641051,-151.0,0.00013989,2]
[330343943,1719276641061,-151.0,0.00013989,2]
[330343944,1719276641070,-151.0,0.00013989,2]
[330343945,1719276641079,-151.0,0.00013989,2]
[330343946,1719276641088,-151.0,0.00013989,2]
[330343947,1719276641099,-283.298356,0.00013989,2]
[330343948,1719276641109,-151.0,0.00013989,2]
[330343949,1719276641118,-151.0,0.00013989,2]
[330343950,1719276641127,-151.0,0.00013989,2]
[330343951,1719276641137,-151.0,0.00013989,2]
[330343952,1719276641146,-151.0,0.00013989,2]
[330343953,1719276641155,-151.0,0.00013989,2]
[330343954,1719276641164,-167.0178,0.00013989,2]
[330343955,1719276641173,-167.0178,0.00013989,2]
[330343956,1719276641183,-151.0,0.00013989,2]
[330343957,1719276641192,-151.0,0.00013989,2]
[330343958,1719276641202,-167.0178,0.00013989,2]
[330343959,1719276641212,-167.0178,0.00013989,2]
[330343960,1719276641221,-151.0,0.00013989,2]
[330343961,1719276641231,-151.0,0.00013989,2]
[330343962,1719276641241,-151.0,0.00013989,2]
[330343963,1719276641251,-151.0,0.00013989,2]
[330343964,1719276641261,-151.0,0.00013989,2]
[330343965,1719276641270,-372.096436,0.00013989,2]
[330343966,1719276641279,-151.0,0.00013989,2]
[330343967,1719276641288,-372.096436,0.00013989,2]
[330343968,1719276641297,-151.0,0.00013989,2]
[330343969,1719276641306,-151.0,0.00013989,2]
[330343970,1719276641316,-372.096436,0.00013989,2]
[330343971,1719276641325,-372.096436,0.00013989,2]
[330343972,1719276641334,-480.687229,0.00013989,2]
[330343973,1719276641347,-480.687229,0.00013989,2]
[330343974,1719276641356,-151.0,0.00013989,2]
[330343975,1719276641365,-480.687229,0.00013989,2]
[330343976,1719276641374,-151.0,0.00013989,2]
[330343977,1719276641384,-480.687229,0.00013989,2]
[330343978,1719276641393,-151.0,0.00013989,2]
[330343979,1719276641403,-151.0,0.00013989,2]
[330343980,1719276641412,-151.0,0.00013989,2]
[330343981,1719276641421,-151.0,0.00013989,2]
[330343982,1719276641430,-151.0,0.00013989,2]
[330343983,1719276641439,-151.0,0.00013989,2]
[330343984,1719276641449,-151.0,0.00013989,2]
[330343985,1719276641458,-151.0,0.00013989,2]
[330343986,1719276641468,-151.0,0.00013989,2]
[330343987,1719276641477,-259.654177,0.00013989,2]
[330343988,1719276641486,-259.654177,0.00013989,2]
[330343989,1719276641496,-151.0,0.00013989,2]
[330343990,1719276641505,-151.0,0.00013989,2]
[330343991,1719276641515,-152.071857,0.00013989,2]
[330343992,1719276641524,-152.071857,0.00013989,2]
[330343993,1719276641533,-151.0,0.00013989,2]
[330343994,1719276641543,-151.0,0.00013989,2]
[330343995,1719276641552,-259.654177,0.00013989,2]
[330343996,1719276641562,-259.654177,0.00013989,2]
[330343997,1719276641572,-152.071857,0.00013989,2]
[330343998,1719276641582,-152.071857,0.00013989,2]
[330343999,1719276641596,-221.557383,0.00013989,2]
[330344000,1719276641605,-282.967228,0.00013989,2]
[330344001,1719276641614,-151.0,0.00013989,2]
[330344002,1719276641623,-151.0,0.00013989,2]
[330344003,1719276641632,-26216.2275046,0.00013989,2]
[330344004,1719276641641,-151.0,0.00013989,2]
[330344005,1719276641650,-151.0,0.00013989,2]
[330344006,1719276641659,-151.0,0.00013989,2]
[330344007,1719276641668,-151.0,0.00013989,2]
[330344008,1719276641678,-151.0,0.00013989,2]
[330344009,1719276641688,-151.0,0.00013989,2]
[330344010,1719276641698,-2266.67304,0.00013989,2]
[330344011,1719276641707,-151.0,0.00013989,2]
[330344012,1719276641717,-151.0,0.00013989,2]
[330344013,1719276641727,-195.032491,0.00013989,2]
[330344014,1719276641736,-151.0,0.00013989,2]
[330344015,1719276641746,-195.032491,0.00013989,2]
[330344016,1719276641755,-151.0,0.00013989,2]
[330344017,1719276641765,-195.032491,0.00013989,2]
[330344018,1719276641775,-195.032491,0.00013989,2]
[330344019,1719276641785,-151.0,0.00013989,2]
[330344020,1719276641794,-151.0,0.00013989,2]
[330344021,1719276641803,-151.0,0.00013989,2]
[330344022,1719276641813,-151.0,0.00013989,2]
[330344023,1719276641822,-151.0,0.00013989,2]
[330344024,1719276641832,-151.0,0.00013989,2]
[330344025,1719276641846,-151.0,0.00013989,2]
[330344026,1719276641856,-151.0,0.00013989,2]
[330344027,1719276641866,-151.0,0.00013989,2]
[330344028,1719276641875,-343.615285,0.00013989,2]
[330344029,1719276641887,-343.615285,0.00013989,2]
[330344030,1719276641897,-151.0,0.00013989,2]
[330344031,1719276641906,-343.615285,0.00013989,2]
[330344032,1719276641916,-343.615285,0.00013989,2]
[330344033,1719276641928,-151.0,0.00013989,2]
[330344034,1719276641938,-151.0,0.00013989,2]
[330344035,1719276641947,-151.0,0.00013989,2]
[330344036,1719276641956,-151.0,0.00013989,2]
[330344037,1719276641966,-151.0,0.00013989,2]
[330344038,1719276641975,-151.0,0.00013989,2]
[330344039,1719276641984,-151.0,0.00013989,2]
[330344040,1719276641994,-699.8012706,0.00013989,2]
[330344041,1719276642003,-151.0,0.00013989,2]
[330344042,1719276642013,-151.0,0.00013989,2]
[330344043,1719276642023,-151.0,0.00013989,2]
[330344044,1719276642032,-151.0,0.00013989,2]
[330344045,1719276642042,-151.0,0.00013989,2]
[330344046,1719276642051,-153.147254,0.00013989,2]
[330344047,1719276642061,-153.147254,0.00013989,2]
[330344048,1719276642070,-151.0,0.00013989,2]
[330344049,1719276642080,-179.432724,0.0001399,2]
[330344050,1719276642090,-208.99062426,0.00013999,2]
[330344051,1719276642100,-2534.68662982,0.00013999,2]
[330344052,1719276642110,-1168.3030704,0.00013999,5]
[330344053,1719276642119,-151.0,0.00013999,2]
[330344054,1719276642128,-151.0,0.00013999,2]
[330344055,1719276642138,-151.0,0.00013999,2]
[330344056,1719276642147,-234.687566,0.00013999,2]
[330344057,1719276642156,-234.687566,0.00013999,2]
[330344058,1719276642166,-242.121751,0.00013999,2]
[330344059,1719276642175,-151.0,0.00013999,2]
[330344060,1719276642185,-242.121751,0.00013999,2]
[330344061,1719276642194,-151.355216,0.00013999,2]
[330344062,1719276642203,-151.355216,0.00013999,2]
[330344063,1719276642212,-526.0,0.00014,2]
[330344064,1719276642221,-84928.02029815,0.00014,2]
[330344146,1719276643098,-2562.54930324,0.00014,2]
[330344147,1719276643123,-12867.52362094,0.00014,2]
[330344148,1719276643136,-65471.51194134,0.00014,2]
[330344150,1719276643148,-22660.45938293,0.00014,2]
[330344152,1719276643160,-17216.99861287,0.00014,2]
[330344159,1719276643754,-552.49402152,0.00012412,2]
[330344160,1719276643764,-5108.51728888,0.00014,2]
[330344161,1719276644060,-106525.78324871,0.00014,2]
[330344162,1719276644234,-0.00611549,0.00014,2]
[330344165,1719276646088,-151.0,0.00013989,2]
[330344166,1719276646102,-151.0,0.00013989,2]
[330344167,1719276646112,-98.57,0.00014,2]
[330344168,1719276646123,-4859.20811546,0.00014,2]
[330344169,1719276646134,-298.31787138,0.00014,2]
[330344172,1719277642132,-300.84019048,0.00010974,2]
[330344173,1719277647173,-357.27980952,0.00010974,2]
[330344174,1719277647196,-153.77125081,0.00012041,2]
[330344175,1719277647219,-526.02933233,0.00012241,2]
[330344176,1719277649602,-265.31401267,0.00012241,2]
[330344177,1719277649623,-480.0,0.00012414,2]
[330344178,1719277649643,-150.0,0.00012565,2]
[330344179,1719277649663,-300.0,0.00012565,2]
[330344180,1719277649684,-156.7891,0.00012566,2]
[330344181,1719277649708,-6943.6673,0.00012566,2]
[330344182,1719277649729,-1105.28904091,0.00012786,2]
[330344183,1719277748689,-295.9392,0.00010874,2]
[330344184,1719277748712,-250.0,0.00012498,2]
[330344185,1719277748735,-250.0,0.00012541,2]
[330344186,1719277748762,-3483.14,0.00012585,2]
[330344187,1719277748784,-300.0,0.00012785,2]
[330344188,1719277748805,-310.0,0.00012786,2]
[330344189,1719277748826,-22794.71095909,0.00012786,2]
[330344190,1719277748848,-935.97,0.00012823,2]
[330344191,1719277748872,-21.64826999,0.00012855,2]
[330344192,1719277766122,-372.25705668,0.00012786,2]
[330344193,1719277766143,-448.52173001,0.00012855,2]
[330344194,1719277766166,-247.29,0.00012879,2]
[330344195,1719277766185,-293.74,0.00012879,2]
[330344196,1719277766206,-470.17,0.0001289,2]
[330344197,1719277766226,-470.17,0.00012925,2]
[330344198,1719277766251,-470.17,0.00012961,2]
[330344199,1719277766273,-520.0,0.00012963,2]
[330344200,1719277766295,-470.17,0.00012996,2]
[330344201,1719277766317,-470.17,0.00013031,2]
[330344202,1719277766337,-186.97,0.00013048,2]
[330344203,1719277766357,-499.99,0.00013048,2]
[330344204,1719277766379,-470.17,0.00013066,2]
[330344205,1719277766402,-470.17,0.00013102,2]
[330344206,1719277766423,-470.17,0.00013137,2]
[330344207,1719277766443,-470.17,0.00013172,2]
[330344208,1719277766464,-470.17,0.00013208,2]
[330344209,1719277766483,-658.12,0.00013238,2]
[330344210,1719277766503,-198.46301331,0.00013243,2]
[330344230,1719277832697,-2660.0435,0.00012686,2]
[330344231,1719277832707,-83.25946766,0.00012755,2]
[330344232,1719277832720,-194.22375232,0.00012755,2]
[330344233,1719277832729,-242.41798313,0.00013243,2]
[330344234,1719277832742,-29.28900356,0.00013243,2]
[330344235,1719277832751,-231.86677811,0.00013243,2]
[330344236,1719277832764,-320.62724341,0.00013243,2]
[330344237,1719277832773,-470.17,0.00013278,2]
[330344238,1719277832783,-470.17,0.00013313,2]
[330344239,1719277832793,-209.96997035,0.00013348,2]
[330344240,1719277832803,-470.17,0.00013349,2]
[330344241,1719277832813,-470.17,0.00013384,2]
[330344242,1719277832823,-470.17,0.00013419,2]
[330344243,1719277832834,-470.17,0.00013454,2]
[330344244,1719277832843,-300.0,0.00013481,2]
[330344245,1719277832854,-10537.00283536,0.00013482,2]
[330344246,1719277832865,-470.17,0.0001349,2]
[330344247,1719277832875,-470.17,0.00013525,2]
[330344248,1719277832885,-164.49,0.00013699,2]
[330344249,1719277832895,-283.6,0.00013699,2]
[330344250,1719277832906,-12181.23646358,0.00013778,2]
[330344251,1719277832917,-3135.18742866,0.00013778,2]
[330344252,1719277832929,-607.95818831,0.00013778,2]
[330344253,1719277832939,-633.71217874,0.00013778,2]
[330344254,1719277832984,-30306.15966981,0.00013778,2]
[330344255,1719277832993,-150.99,0.00013797,2]
[330344256,1719277833003,-150.99,0.00013797,2]
[330344257,1719277833012,-500.0,0.000138,2]
[330344258,1719277833021,-42311.3425,0.000138,2]
[330344259,1719277833031,-2856.8915,0.000138,2]
[330344260,1719277833040,-300.0,0.000138,5]
[330344262,1719277833050,-10393.89581756,0.000138,2]
[330344264,1719277833059,-18238.75126296,0.000138,2]
[330344266,1719277833068,-25248.94357444,0.00013808,2]
[330344269,1719277833078,-500.0,0.00013888,2]
[330344271,1719277833088,-200.0,0.00013888,2]
[330344273,1719277833098,-2500.0,0.00013889,2]
[330344276,1719277833107,-219.2,0.0001389,2]
[330344278,1719277833116,-6781.7837,0.000139,2]
[330344279,1719277833126,-165.67642337,0.000139,2]
[330344281,1719277833135,-156.77732302,0.000139,2]
[330344282,1719277833143,-700.0,0.000139,5]
[330344283,1719277833152,-421.84937461,0.000139,2]
[330344284,1719277833161,-7500.0,0.000139,2]
[330344285,1719277833171,-329.80095471,0.000139,2]
[330344286,1719277833180,-178.73871888,0.000139,2]
[330344287,1719277833189,-474.2892422,0.00013912,2]
[330344288,1719277833198,-527.78130282,0.00013914,2]
[330344289,1719277833207,-328.45118823,0.00013914,2]
[330344290,1719277833216,-266.71,0.00013915,2]
[330344291,1719277833225,-572.61263471,0.00013965,2]
[330344292,1719277833235,-480.0,0.00013966,2]
[330344293,1719277833244,-510.75744925,0.00013972,2]
[330344294,1719277833257,-292.20084944,0.00013979,2]
[330344295,1719277833266,-19806.9655109,0.00013989,2]
[330344296,1719277833275,-38149.2530357,0.00013989,2]
[330344297,1719277833285,-3275.7733411,0.00013989,2]
[330344298,1719277833294,-7115.7549317,0.00013989,2]
[330344299,1719277833303,-10259.5177427,0.00013989,2]
[330344300,1719277833312,-589.59903905,0.00013989,2]
[330344301,1719277833321,-188.70718237,0.0001399,2]
[330344302,1719277833331,-9580.0,0.00013991,2]
[330344303,1719277833340,-970.30972548,0.00013999,2]
[330344304,1719277833349,-273.30687246,0.00013999,2]
[330344305,1719277833359,-234942.06462798,0.00014,2]
[330344306,1719277833368,-371361.69945202,0.00014,2]
[330344307,1719277833991,-5044.56,0.00014,2]
[330344308,1719277834002,-4866.81406661,0.00014,2]
[330344309,1719277834014,-1000.37172,0.00014,2]
[330344310,1719277834026,-251.88644517,0.00014,2]
[330344311,1719277834038,-645.85687332,0.00014,2]
[330344312,1719277834072,-1165.65665655,0.00014,2]
[330344313,1719277834083,-1306.24,0.00014,2]
[330344314,1719277834095,-503.15430007,0.00014,2]
[330344315,1719277834107,-10921.7300019,0.00014,2]
[330344316,1719277834118,-4334.02072546,0.00014,2]
[330344317,1719277834131,-1444.14581354,0.00014,2]
[330344318,1719277834142,-6643.9959,0.00014,2]
[330344319,1719277834154,-312.75876885,0.00014,2]
[330344320,1719277834167,-284.1080006,0.00014,2]
[330344321,1719277834180,-280.44188,0.00014,2]
[330344322,1719277834191,-775.19666386,0.00014,2]
[330344344,1719277838126,-426.35735425,0.00013999,2]
[330344347,1719277838139,-363.52436601,0.00013999,2]
[330344349,1719277838148,-878.34918882,0.00014,2]
[330344351,1719277838160,-572.78982099,0.00014,2]
[330344353,1719277838171,-171669.67199278,0.00014,2]
[330344354,1719277838183,-32542.82611893,0.00014,2]
[330344355,1719277838206,-131.63780621,0.00014,2]
[330344356,1719277838218,-1856.5631075,0.00014,2]
[330344357,1719277838242,-27457.25238346,0.00014,2]
[330344358,1719277838258,-865.56176964,0.00014,2]
[330344363,1719277838306,-1134.43823036,0.00014,2]
[330344365,1719277838316,-200.0,0.00014,2]
[330344367,1719277838326,-151.0,0.00014,2]
[330344369,1719277838338,-151.0,0.00014,2]
[330344370,1719277838347,-151.0,0.00014,2]
[330344371,1719277838357,-500.0,0.00014,2]
[330344372,1719277838367,-500.0,0.00014,2]
[330344373,1719277838377,-500.0,0.00014,2]
[330344374,1719277838388,-500.0,0.00014,2]
[330344375,1719277838397,-151.0,0.00014,2]
[330344376,1719277838408,-500.0,0.00014,2]
[330344377,1719277838417,-500.0,0.00014,2]
[330344378,1719277838427,-500.0,0.00014,2]
[330344379,1719277838437,-500.0,0.00014,2]
[330344381,1719277838448,-600.0,0.00014,2]
[330344382,1719277838457,-151.0,0.00014,2]
[330344383,1719277838467,-151.0,0.00014,2]
[330344384,1719277838478,-231.280926,0.00014,2]
[330344385,1719277838488,-200.93523497,0.00014,2]
[330344386,1719277838500,-30.34569103,0.00014,2]
[330344387,1719277838510,-151.0,0.00014,2]
[330344388,1719277838519,-209.410008,0.00014,2]
[330344389,1719277838529,-151.0,0.00014,2]
[330344390,1719277838539,-151.0,0.00014,2]
[330344391,1719277838549,-151.0,0.00014,2]
[330344392,1719277838558,-151.0,0.00014,2]
[330344393,1719277838568,-151.0,0.00014,2]
[330344394,1719277838577,-151.0,0.00014,2]
[330344395,1719277838587,-151.0,0.00014,2]
[330344396,1719277838597,-229.901651,0.00014,2]
[330344397,1719277838607,-229.901651,0.00014,2]
[330344398,1719277838617,-151.0,0.00014,2]
[330344399,1719277838627,-151.0,0.00014,2]
[330344400,1719277838637,-199.862285,0.00014,2]
[330344401,1719277838646,-199.862285,0.00014,2]
[330344402,1719277838655,-229.901651,0.00014,2]
[330344403,1719277838664,-229.901651,0.00014,2]
[330344404,1719277838674,-151.0,0.00014,2]
[330344405,1719277838683,-151.0,0.00014,2]
[330344406,1719277838693,-1041.44919997,0.00014,2]
[330344407,1719277838705,-958.55080003,0.00014,2]
[330344408,1719277838715,-199.862285,0.00014,2]
[330344409,1719277838725,-199.862285,0.00014,2]
[330344410,1719277838734,-200.0,0.00014,2]
[330344411,1719277838744,-155.639262,0.00014,2]
[330344412,1719277838753,-151.0,0.00014,2]
[330344413,1719277838762,-151.0,0.00014,2]
[330344414,1719277838772,-151.0,0.00014,2]
[330344415,1719277838783,-151.0,0.00014,2]
[330344416,1719277838792,-151.0,0.00014,2]
[330344417,1719277838802,-151.0,0.00014,2]
[330344418,1719277838811,-225.874087,0.00014,2]
[330344419,1719277838821,-225.874087,0.00014,2]
[330344420,1719277838830,-854.191739,0.00014,2]
[330344421,1719277838839,-854.191739,0.00014,2]
[330344422,1719277838849,-225.874087,0.00014,2]
[330344423,1719277838859,-225.874087,0.00014,2]
[330344424,1719277838869,-854.191739,0.00014,2]
[330344425,1719277838880,-854.191739,0.00014,2]
[330344426,1719277838889,-199.226073,0.00014,2]
[330344427,1719277838898,-199.226073,0.00014,2]
[330344428,1719277838908,-199.226073,0.00014,2]
[330344429,1719277838919,-199.226073,0.00014,2]
[330344430,1719277838928,-307.184614,0.00014,2]
[330344431,1719277838938,-307.184614,0.00014,2]
[330344432,1719277838947,-307.184614,0.00014,2]
[330344433,1719277838959,-307.184614,0.00014,2]
[330344434,1719277838968,-151.0,0.00014,2]
[330344435,1719277838977,-151.0,0.00014,2]
[330344436,1719277838987,-151.0,0.00014,2]
[330344437,1719277838996,-151.0,0.00014,2]
[330344438,1719277839005,-151.0,0.00014,2]
[330344439,1719277839015,-151.0,0.00014,2]
[330344440,1719277839025,-151.0,0.00014,2]
[330344441,1719277839034,-151.0,0.00014,2]
[330344442,1719277839044,-151.0,0.00014,2]
[330344443,1719277839054,-105.97874791,0.00014,2]
[330344444,1719277839068,-45.02125209,0.00014,2]
[330344445,1719277839078,-750.519182,0.00014,2]
[330344446,1719277839088,-611.92519129,0.00014,2]
[330344447,1719277839100,-138.59399071,0.00014,2]
[330344448,1719277839110,-308.03332292,0.00014,2]
[330344449,1719277839123,-442.48585908,0.00014,2]
[330344450,1719277839134,-600.91414092,0.00014,2]
[330344451,1719277839146,-149.60504108,0.00014,2]
[330344452,1719277839156,-750.519182,0.00014,2]
[330344453,1719277839167,-750.519182,0.00014,2]
[330344454,1719277839178,-151.0,0.00014,2]
[330344455,1719277839188,-151.0,0.00014,2]
[330344456,1719277839198,-151.0,0.00014,2]
[330344457,1719277839208,-151.0,0.00014,2]
[330344458,1719277839218,-155.225321,0.00014,2]
[330344459,1719277839228,-158.06899,0.00014,2]
[330344460,1719277839238,-151.0,0.00014,2]
[330344461,1719277839253,-155.0,0.00014,2]
[330344462,1719277839264,-151.0,0.00014,2]
[330344463,1719277839274,-157.60096,0.00014,2]
[330344464,1719277839286,-187.117407,0.00014,2]
[330344465,1719277839295,-187.117407,0.00014,2]
[330344466,1719277839305,-187.117407,0.00014,2]
[330344467,1719277839315,-187.117407,0.00014,2]
[330344468,1719277839326,-151.0,0.00014,2]
[330344469,1719277839337,-151.0,0.00014,2]
[330344470,1719277839347,-151.0,0.00014,2]
[330344471,1719277839356,-245.832389,0.00014,2]
[330344472,1719277839366,-423.521459,0.00014,2]
[330344473,1719277839376,-423.521459,0.00014,2]
[330344474,1719277839387,-423.521459,0.00014,2]
[330344475,1719277839396,-423.521459,0.00014,2]
[330344476,1719277839405,-151.0,0.00014,2]
[330344477,1719277839415,-151.0,0.00014,2]
[330344478,1719277839425,-161.611931,0.00014,2]
[330344479,1719277839435,-151.0,0.00014,2]
[330344480,1719277839444,-151.0,0.00014,2]
[330344481,1719277839453,-151.0,0.00014,2]
[330344482,1719277839464,-151.0,0.00014,2]
[330344483,1719277839473,-151.0,0.00014,2]
[330344484,1719277839483,-151.0,0.00014,2]
[330344485,1719277839492,-151.0,0.00014,2]
[330344486,1719277839502,-151.0,0.00014,2]
[330344487,1719277839511,-151.0,0.00014,2]
[330344488,1719277839521,-151.0,0.00014,2]
[330344489,1719277839531,-151.0,0.00014,2]
[330344490,1719277839540,-152.62601,0.00014,2]
[330344491,1719277839550,-151.0,0.00014,2]
[330344492,1719277839560,-151.0,0.00014,2]
[330344493,1719277839569,-151.0,0.00014,2]
[330344494,1719277839579,-151.0,0.00014,2]
[330344495,1719277839588,-151.0,0.00014,2]
[330344496,1719277839598,-251.447549,0.00014,2]
[330344497,1719277839607,-159.322105,0.00014,2]
[330344498,1719277839617,-151.0,0.00014,2]
[330344499,1719277839627,-151.0,0.00014,2]
[330344500,1719277839638,-24.35598815,0.00014,2]
[330344501,1719277839661,-126.64401185,0.00014,2]
[330344502,1719277839670,-151.0,0.00014,2]
[330344503,1719277839681,-151.0,0.00014,2]
[330344504,1719277839691,-151.0,0.00014,2]
[330344505,1719277839700,-151.0,0.00014,2]
[330344506,1719277839710,-151.0,0.00014,2]
[330344507,1719277839720,-151.0,0.00014,2]
[330344508,1719277839730,-151.0,0.00014,2]
[330344509,1719277839740,-151.0,0.00014,2]
[330344510,1719277839750,-299.184149,0.00014,2]